fUST/lending_fUST_20260621
["ID","MTS","AMOUNT","RATE_DAILY","PERIOD"]
[425839085,1781971841000,-716.97,0.00016712,2]
[425839073,1781971841000,-500.0,0.00016712,2]
[425839069,1781971841000,-917.58,0.00016712,2]
[425839087,1781971841000,-500.0,0.00016712,2]
[425839187,1781971842000,-500.0,0.00016986,2]
[425839181,1781971842000,-457.68168257,0.00016986,2]
[425839171,1781971842000,-500.0,0.00016986,2]
[425839164,1781971842000,-500.0,0.00016986,2]
[425839170,1781971842000,-500.0,0.00016986,2]
[425839159,1781971842000,-500.0,0.00016986,2]
[425839173,1781971842000,-500.0,0.00016986,2]
[425839166,1781971842000,-500.0,0.00016986,2]
[425839162,1781971842000,-500.0,0.00016986,2]
[425839161,1781971842000,-500.0,0.00016986,2]
[425839148,1781971842000,-500.0,0.00016986,2]
[425839175,1781971842000,-500.0,0.00016986,2]
[425839168,1781971842000,-500.0,0.00016986,2]
[425839184,1781971842000,-500.0,0.00016986,2]
[425839213,1781971842000,-500.0,0.00016986,2]
[425839189,1781971842000,-500.0,0.00016986,2]
[425839192,1781971842000,-500.0,0.00016986,2]
[425839204,1781971842000,-500.0,0.00016986,2]
[425839208,1781971842000,-716.45,0.00016986,2]
[425839210,1781971842000,-540.49,0.00016986,2]
[425839195,1781971842000,-500.0,0.00016986,2]
[425839198,1781971842000,-712.1,0.00016986,2]
[425839218,1781971842000,-259.49954298,0.00016986,2]
[425839216,1781971842000,-663.32,0.00016986,2]
[425839202,1781971842000,-500.0,0.00016986,2]
[425839221,1781971842000,-500.0,0.00016986,2]
[425839228,1781971842000,-500.0,0.00016986,2]
[425839224,1781971842000,-500.0,0.00016986,2]
[425839178,1781971842000,-289.45718754,0.00016986,2]
[425839155,1781971842000,-305.25760556,0.00016986,2]
[425839127,1781971842000,-159.28706379,0.00016986,2]
[425839150,1781971842000,-500.0,0.00016986,2]
[425839226,1781971842000,-917.58,0.00016986,2]
[425839119,1781971842000,-322.0,0.0001695,2]
[425839126,1781971842000,-500.0,0.00016986,2]
[425839120,1781971842000,-500.0,0.00016985,2]
[425839121,1781971842000,-500.0,0.00016985,2]
[425839125,1781971842000,-351.21222828,0.00016986,2]
[425839123,1781971842000,-727.54302127,0.00016986,2]
[425839122,1781971842000,-1644.14711645,0.00016986,2]
[425839124,1781971842000,-500.0,0.00016986,2]
[425839128,1781971842000,-500.0,0.00016986,2]
[425839129,1781971842000,-500.0,0.00016986,2]
[425839139,1781971842000,-500.0,0.00016986,2]
[425839131,1781971842000,-164.50014595,0.00016986,2]
[425839146,1781971842000,-500.0,0.00016986,2]
[425839138,1781971842000,-500.0,0.00016986,2]
[425839136,1781971842000,-500.0,0.00016986,2]
[425839133,1781971842000,-294.74735375,0.00016986,2]
[425839130,1781971842000,-261.9545044,0.00016986,2]
[425839137,1781971842000,-500.0,0.00016986,2]
[425839134,1781971842000,-500.0,0.00016986,2]
[425839135,1781971842000,-500.0,0.00016986,2]
[425839140,1781971842000,-500.0,0.00016986,2]
[425839142,1781971842000,-500.0,0.00016986,2]
[425839144,1781971842000,-571.27,0.00016986,2]
[425839151,1781971842000,-500.0,0.00016986,2]
[425839141,1781971842000,-500.0,0.00016986,2]
[425839153,1781971842000,-665.4,0.00016986,2]
[425839157,1781971842000,-500.0,0.00016986,2]
[425839132,1781971842000,-500.0,0.00016986,2]
[425839231,1781971842000,-500.0,0.00016986,2]
[425839234,1781971842000,-500.0,0.00016986,2]
[425839355,1781971842000,-500.0,0.0001726,2]
[425839293,1781971842000,-500.0,0.0001726,2]
[425839309,1781971842000,-500.0,0.0001726,2]
[425839305,1781971842000,-500.0,0.0001726,2]
[425839291,1781971842000,-500.0,0.0001726,2]
[425839311,1781971842000,-500.0,0.0001726,2]
[425839313,1781971842000,-500.0,0.0001726,2]
[425839315,1781971842000,-571.27,0.0001726,2]
[425839317,1781971842000,-500.0,0.0001726,2]
[425839331,1781971842000,-500.0,0.0001726,2]
[425839321,1781971842000,-500.0,0.0001726,2]
[425839319,1781971842000,-500.0,0.0001726,2]
[425839333,1781971842000,-500.0,0.0001726,2]
[425839325,1781971842000,-500.0,0.0001726,2]
[425839336,1781971842000,-500.0,0.0001726,2]
[425839329,1781971842000,-500.0,0.0001726,2]
[425839327,1781971842000,-665.4,0.0001726,2]
[425839339,1781971842000,-500.0,0.0001726,2]
[425839345,1781971842000,-500.0,0.0001726,2]
[425839347,1781971842000,-500.0,0.0001726,2]
[425839341,1781971842000,-500.0,0.0001726,2]
[425839343,1781971842000,-280.67436657,0.0001726,2]
[425839357,1781971842000,-500.0,0.0001726,2]
[425839359,1781971842000,-500.0,0.0001726,2]
[425839338,1781971842000,-500.0,0.0001726,2]
[425839349,1781971842000,-500.0,0.0001726,2]
[425839361,1781971842000,-500.0,0.0001726,2]
[425839352,1781971842000,-500.0,0.0001726,2]
[425839238,1781971842000,-500.0,0.00016986,2]
[425839363,1781971842000,-712.1,0.0001726,2]
[425839289,1781971842000,-500.0,0.0001726,2]
[425839307,1781971842000,-500.0,0.0001726,2]
[425839323,1781971842000,-500.0,0.0001726,2]
[425839287,1781971842000,-168.253818,0.00017114,2]
[425839285,1781971842000,-151.0,0.00017,2]
[425839240,1781971842000,-500.0,0.00016986,2]
[425839252,1781971842000,-500.0,0.00016986,2]
[425839242,1781971842000,-500.0,0.00016986,2]
[425839246,1781971842000,-5756.79,0.00016986,2]
[425839244,1781971842000,-500.0,0.00016986,2]
[425839248,1781971842000,-500.0,0.00016986,2]
[425839254,1781971842000,-716.97,0.00016986,2]
[425839250,1781971842000,-1079.45,0.00016986,2]
[425839256,1781971842000,-500.0,0.00016986,2]
[425839260,1781971842000,-500.0,0.00016986,2]
[425839264,1781971842000,-671.18,0.00016986,2]
[425839266,1781971842000,-500.0,0.00016986,2]
[425839258,1781971842000,-500.0,0.00016986,2]
[425839268,1781971842000,-151.0,0.00016986,2]
[425839236,1781971842000,-500.0,0.00016986,2]
[425839269,1781971842000,-583.33,0.00016986,2]
[425839262,1781971842000,-653.41,0.00016986,2]
[425839299,1781971842000,-500.0,0.0001726,2]
[425839298,1781971842000,-500.0,0.0001726,2]
[425839283,1781971842000,-169324.75270844,0.00017,2]
[425839301,1781971842000,-500.0,0.0001726,2]
[425839296,1781971842000,-500.0,0.0001726,2]
[425839303,1781971842000,-500.0,0.0001726,2]
[425839279,1781971842000,-500.0,0.00016986,2]
[425839275,1781971842000,-500.0,0.00016986,2]
[425839273,1781971842000,-654.87,0.00016986,2]
[425839271,1781971842000,-612.47,0.00016986,2]
[425839277,1781971842000,-602.82,0.00016986,2]
[425839281,1781971842000,-205.37733386,0.00016999,2]
[425839439,1781971843000,-500.0,0.00017534,2]
[425839431,1781971843000,-500.0,0.00017534,2]
[425839446,1781971843000,-500.0,0.00017534,2]
[425839430,1781971843000,-500.0,0.00017534,2]
[425839417,1781971843000,-500.0,0.0001726,2]
[425839428,1781971843000,-500.0,0.00017534,2]
[425839419,1781971843000,-600.0,0.00017339,2]
[425839421,1781971843000,-500.1673033,0.00017357,2]
[425839426,1781971843000,-500.0,0.00017534,2]
[425839407,1781971843000,-500.0,0.0001726,2]
[425839414,1781971843000,-500.0,0.0001726,2]
[425839437,1781971843000,-500.0,0.00017534,2]
[425839424,1781971843000,-500.0,0.00017534,2]
[425839447,1781971843000,-500.0,0.00017534,2]
[425839441,1781971843000,-500.0,0.00017534,2]
[425839433,1781971843000,-500.0,0.00017534,2]
[425839438,1781971843000,-500.0,0.00017534,2]
[425839435,1781971843000,-500.0,0.00017534,2]
[425839442,1781971843000,-500.0,0.00017534,2]
[425839444,1781971843000,-500.0,0.00017534,2]
[425839463,1781971843000,-500.0,0.00017534,2]
[425839454,1781971843000,-500.0,0.00017534,2]
[425839458,1781971843000,-500.0,0.00017534,2]
[425839464,1781971843000,-500.0,0.00017534,2]
[425839461,1781971843000,-500.0,0.00017534,2]
[425839451,1781971843000,-500.0,0.00017534,2]
[425839449,1781971843000,-665.4,0.00017534,2]
[425839405,1781971843000,-671.18,0.0001726,2]
[425839440,1781971843000,-571.27,0.00017534,2]
[425839412,1781971843000,-654.87,0.0001726,2]
[425839456,1781971843000,-500.0,0.00017534,2]
[425839415,1781971843000,-602.82,0.0001726,2]
[425839367,1781971843000,-500.0,0.0001726,2]
[425839375,1781971843000,-663.32,0.0001726,2]
[425839377,1781971843000,-500.0,0.0001726,2]
[425839369,1781971843000,-716.45,0.0001726,2]
[425839376,1781971843000,-500.0,0.0001726,2]
[425839365,1781971843000,-500.0,0.0001726,2]
[425839371,1781971843000,-540.49,0.0001726,2]
[425839378,1781971843000,-917.58,0.0001726,2]
[425839381,1781971843000,-500.0,0.0001726,2]
[425839379,1781971843000,-500.0,0.0001726,2]
[425839372,1781971843000,-500.0,0.0001726,2]
[425839380,1781971843000,-500.0,0.0001726,2]
[425839382,1781971843000,-500.0,0.0001726,2]
[425839408,1781971843000,-583.33,0.0001726,2]
[425839383,1781971843000,-500.0,0.0001726,2]
[425839399,1781971843000,-500.0,0.0001726,2]
[425839384,1781971843000,-500.0,0.0001726,2]
[425839401,1781971843000,-500.0,0.0001726,2]
[425839397,1781971843000,-500.0,0.0001726,2]
[425839394,1781971843000,-500.0,0.0001726,2]
[425839388,1781971843000,-5756.79,0.0001726,2]
[425839390,1781971843000,-500.0,0.0001726,2]
[425839403,1781971843000,-653.41,0.0001726,2]
[425839385,1781971843000,-500.0,0.0001726,2]
[425839386,1781971843000,-500.0,0.0001726,2]
[425839392,1781971843000,-1079.45,0.0001726,2]
[425839410,1781971843000,-612.47,0.0001726,2]
[425839423,1781971843000,-1227.484554,0.000175,2]
[425839396,1781971843000,-716.97,0.0001726,2]
[425839452,1781971843000,-500.0,0.00017534,2]
[425839572,1781971843000,-321.97,0.00017712,2]
[425839470,1781971843000,-500.0,0.00017534,2]
[425839531,1781971843000,-151.0,0.00017534,2]
[425839527,1781971843000,-671.18,0.00017534,2]
[425839532,1781971843000,-583.33,0.00017534,2]
[425839534,1781971843000,-612.47,0.00017534,2]
[425839541,1781971843000,-500.0,0.00017534,2]
[425839536,1781971843000,-654.87,0.00017534,2]
[425839538,1781971843000,-500.0,0.00017534,2]
[425839543,1781971843000,-623.01,0.00017534,2]
[425839546,1781971843000,-160.0,0.00017586,2]
[425839540,1781971843000,-602.82,0.00017534,2]
[425839548,1781971843000,-160.0,0.00017586,2]
[425839550,1781971843000,-160.0,0.00017586,2]
[425839552,1781971843000,-160.0,0.00017586,2]
[425839529,1781971843000,-500.0,0.00017534,2]
[425839554,1781971843000,-160.0,0.00017586,2]
[425839563,1781971843000,-160.0,0.00017586,2]
[425839565,1781971843000,-160.0,0.00017586,2]
[425839578,1781971843000,-500.0,0.00017808,2]
[425839576,1781971843000,-500.0,0.00017808,2]
[425839580,1781971843000,-500.0,0.00017808,2]
[425839567,1781971843000,-329.01635094,0.00017615,7]
[425839582,1781971843000,-500.0,0.00017808,2]
[425839585,1781971843000,-500.0,0.00017808,2]
[425839570,1781971843000,-488.56541581,0.00017649,2]
[425839568,1781971843000,-153.87792411,0.00017618,2]
[425839583,1781971843000,-500.0,0.00017808,2]
[425839574,1781971843000,-190.0,0.00017753,3]
[425839468,1781971843000,-500.0,0.00017534,2]
[425839561,1781971843000,-160.0,0.00017586,2]
[425839525,1781971843000,-653.41,0.00017534,2]
[425839560,1781971843000,-160.0,0.00017586,2]
[425839521,1781971843000,-500.0,0.00017534,2]
[425839523,1781971843000,-500.0,0.00017534,2]
[425839466,1781971843000,-500.0,0.00017534,2]
[425839471,1781971843000,-500.0,0.00017534,2]
[425839491,1781971843000,-500.0,0.00017534,2]
[425839479,1781971843000,-500.0,0.00017534,2]
[425839485,1781971843000,-526.64469774,0.00017534,2]
[425839477,1781971843000,-500.0,0.00017534,2]
[425839487,1781971843000,-663.32,0.00017534,2]
[425839489,1781971843000,-500.0,0.00017534,2]
[425839475,1781971843000,-712.1,0.00017534,2]
[425839473,1781971843000,-500.0,0.00017534,2]
[425839495,1781971843000,-500.0,0.00017534,2]
[425839493,1781971843000,-917.58,0.00017534,2]
[425839483,1781971843000,-540.49,0.00017534,2]
[425839459,1781971843000,-500.0,0.00017534,2]
[425839497,1781971843000,-500.0,0.00017534,2]
[425839481,1781971843000,-716.45,0.00017534,2]
[425839516,1781971843000,-500.0,0.00017534,2]
[425839508,1781971843000,-500.0,0.00017534,2]
[425839506,1781971843000,-500.0,0.00017534,2]
[425839520,1781971843000,-500.0,0.00017534,2]
[425839501,1781971843000,-500.0,0.00017534,2]
[425839518,1781971843000,-716.97,0.00017534,2]
[425839502,1781971843000,-500.0,0.00017534,2]
[425839514,1781971843000,-1079.45,0.00017534,2]
[425839512,1781971843000,-500.0,0.00017534,2]
[425839510,1781971843000,-5756.79,0.00017534,2]
[425839499,1781971843000,-500.0,0.00017534,2]
[425839504,1781971843000,-500.0,0.00017534,2]
[425839659,1781971844000,-500.0,0.00017808,2]
[425839663,1781971844000,-337.02976954,0.00017808,2]
[425839655,1781971844000,-500.0,0.00017808,2]
[425839672,1781971844000,-500.0,0.00017808,2]
[425839636,1781971844000,-500.0,0.00017808,2]
[425839668,1781971844000,-1079.45,0.00017808,2]
[425839657,1781971844000,-500.0,0.00017808,2]
[425839665,1781971844000,-5756.79,0.00017808,2]
[425839654,1781971844000,-500.0,0.00017808,2]
[425839650,1781971844000,-500.0,0.00017808,2]
[425839641,1781971844000,-540.49,0.00017808,2]
[425839661,1781971844000,-500.0,0.00017808,2]
[425839666,1781971844000,-500.0,0.00017808,2]
[425839674,1781971844000,-500.0,0.00017808,2]
[425839692,1781971844000,-500.0,0.00017808,2]
[425839676,1781971844000,-500.0,0.00017808,2]
[425839677,1781971844000,-653.41,0.00017808,2]
[425839679,1781971844000,-671.18,0.00017808,2]
[425839681,1781971844000,-500.0,0.00017808,2]
[425839685,1781971844000,-612.47,0.00017808,2]
[425839686,1781971844000,-654.87,0.00017808,2]
[425839683,1781971844000,-583.33,0.00017808,2]
[425839690,1781971844000,-602.82,0.00017808,2]
[425839688,1781971844000,-500.0,0.00017808,2]
[425839699,1781971844000,-459145.73560238,0.00018,2]
[425839702,1781971844000,-46917.1087129,0.00018,2]
[425839695,1781971844000,-244.38271419,0.00017955,2]
[425839652,1781971844000,-500.0,0.00017808,2]
[425839670,1781971844000,-716.97,0.00017808,2]
[425839634,1781971844000,-712.1,0.00017808,2]
[425839694,1781971844000,-167.4,0.000179,2]
[425839632,1781971844000,-500.0,0.00017808,2]
[425839587,1781971844000,-500.0,0.00017808,2]
[425839589,1781971844000,-441.68021327,0.00017808,2]
[425839591,1781971844000,-500.0,0.00017808,2]
[425839596,1781971844000,-571.27,0.00017808,2]
[425839593,1781971844000,-500.0,0.00017808,2]
[425839598,1781971844000,-500.0,0.00017808,2]
[425839600,1781971844000,-500.0,0.00017808,2]
[425839604,1781971844000,-500.0,0.00017808,2]
[425839606,1781971844000,-665.4,0.00017808,2]
[425839608,1781971844000,-500.0,0.00017808,2]
[425839595,1781971844000,-500.0,0.00017808,2]
[425839602,1781971844000,-500.0,0.00017808,2]
[425839610,1781971844000,-500.0,0.00017808,2]
[425839638,1781971844000,-500.0,0.00017808,2]
[425839615,1781971844000,-500.0,0.00017808,2]
[425839612,1781971844000,-500.0,0.00017808,2]
[425839619,1781971844000,-500.0,0.00017808,2]
[425839617,1781971844000,-500.0,0.00017808,2]
[425839630,1781971844000,-500.0,0.00017808,2]
[425839625,1781971844000,-500.0,0.00017808,2]
[425839629,1781971844000,-500.0,0.00017808,2]
[425839623,1781971844000,-500.0,0.00017808,2]
[425839627,1781971844000,-500.0,0.00017808,2]
[425839643,1781971844000,-663.32,0.00017808,2]
[425839645,1781971844000,-500.0,0.00017808,2]
[425839646,1781971844000,-500.0,0.00017808,2]
[425839648,1781971844000,-917.58,0.00017808,2]
[425839639,1781971844000,-716.45,0.00017808,2]
[425839614,1781971844000,-500.0,0.00017808,2]
[425839697,1781971844000,-168.253818,0.0001797,2]
[425839621,1781971844000,-500.0,0.00017808,2]
[425839706,1781971844000,-1000.0,0.00018,2]
[425839756,1781971844000,-500.0,0.00018082,2]
[425839760,1781971844000,-500.0,0.00018082,2]
[425839754,1781971844000,-500.0,0.00018082,2]
[425839775,1781971844000,-540.49,0.00018082,2]
[425839773,1781971844000,-716.45,0.00018082,2]
[425839776,1781971844000,-663.32,0.00018082,2]
[425839780,1781971844000,-591.82352382,0.00018082,2]
[425839778,1781971844000,-500.0,0.00018082,2]
[425839782,1781971844000,-917.58,0.00018082,2]
[425839816,1781971844000,-612.47,0.00018082,2]
[425839784,1781971844000,-500.0,0.00018082,2]
[425839786,1781971844000,-500.0,0.00018082,2]
[425839788,1781971844000,-500.0,0.00018082,2]
[425839797,1781971844000,-5756.79,0.00018082,2]
[425839790,1781971844000,-500.0,0.00018082,2]
[425839793,1781971844000,-500.0,0.00018082,2]
[425839795,1781971844000,-500.0,0.00018082,2]
[425839801,1781971844000,-1079.45,0.00018082,2]
[425839810,1781971844000,-653.41,0.00018082,2]
[425839818,1781971844000,-654.87,0.00018082,2]
[425839806,1781971844000,-500.0,0.00018082,2]
[425839804,1781971844000,-500.0,0.00018082,2]
[425839812,1781971844000,-671.18,0.00018082,2]
[425839799,1781971844000,-500.0,0.00018082,2]
[425839802,1781971844000,-716.97,0.00018082,2]
[425839815,1781971844000,-583.33,0.00018082,2]
[425839813,1781971844000,-500.0,0.00018082,2]
[425839808,1781971844000,-500.0,0.00018082,2]
[425839704,1781971844000,-182.74876681,0.00018,2]
[425839762,1781971844000,-500.0,0.00018082,2]
[425839758,1781971844000,-500.0,0.00018082,2]
[425839791,1781971844000,-505.49338292,0.00018082,2]
[425839764,1781971844000,-500.0,0.00018082,2]
[425839712,1781971844000,-160.0,0.00018061,2]
[425839708,1781971844000,-186.0,0.00018048,2]
[425839714,1781971844000,-160.0,0.00018061,2]
[425839724,1781971844000,-500.0,0.00018082,2]
[425839716,1781971844000,-500.0,0.00018082,2]
[425839718,1781971844000,-500.0,0.00018082,2]
[425839723,1781971844000,-500.0,0.00018082,2]
[425839728,1781971844000,-500.0,0.00018082,2]
[425839721,1781971844000,-500.880775,0.00018082,2]
[425839719,1781971844000,-500.0,0.00018082,2]
[425839726,1781971844000,-500.0,0.00018082,2]
[425839710,1781971844000,-445.0,0.00018048,2]
[425839769,1781971844000,-500.0,0.00018082,2]
[425839733,1781971844000,-500.0,0.00018082,2]
[425839731,1781971844000,-500.0,0.00018082,2]
[425839744,1781971844000,-500.0,0.00018082,2]
[425839771,1781971844000,-500.0,0.00018082,2]
[425839766,1781971844000,-712.1,0.00018082,2]
[425839767,1781971844000,-500.0,0.00018082,2]
[425839753,1781971844000,-500.0,0.00018082,2]
[425839749,1781971844000,-500.0,0.00018082,2]
[425839740,1781971844000,-665.4,0.00018082,2]
[425839751,1781971844000,-500.0,0.00018082,2]
[425839730,1781971844000,-571.27,0.00018082,2]
[425839738,1781971844000,-500.0,0.00018082,2]
[425839747,1781971844000,-500.0,0.00018082,2]
[425839735,1781971844000,-500.0,0.00018082,2]
[425839736,1781971844000,-500.0,0.00018082,2]
[425839742,1781971844000,-500.0,0.00018082,2]
[425839745,1781971844000,-500.0,0.00018082,2]
[425839820,1781971845000,-500.0,0.00018082,2]
[425839824,1781971845000,-171.473834,0.0001813,2]
[425839828,1781971845000,-242.900484,0.00018248,2]
[425839826,1781971845000,-182.74876681,0.000182,2]
[425839832,1781971845000,-46610.27006255,0.000183,2]
[425839823,1781971845000,-500.0,0.00018082,2]
[425839825,1781971845000,-191.693784,0.0001813,2]
[425839830,1781971845000,-523.99529556,0.00018295,2]
[425839849,1781971845000,-129193.69653734,0.000183,2]
[425839854,1781971845000,-117046.03263345,0.000183,2]
[425839852,1781971845000,-35874.3921675,0.000183,2]
[425839822,1781971845000,-602.82,0.00018082,2]
[425839972,1781971846000,-500.0,0.00016438,2]
[425839974,1781971846000,-788.11806854,0.000183,2]
[425839971,1781971846000,-168.52846646,0.00016438,2]
[425839969,1781971846000,-322.005,0.00014911,2]
[425839978,1781971846000,-7587.99999999,0.000183,2]
[425840310,1781973032000,-151.0,0.00010421,2]
[425840312,1781973032000,-1149.52241218,0.00010743,2]
[425840311,1781973032000,-607.67775216,0.00010743,2]
[425840418,1781973038000,-300.0,0.00015732,2]
[425840419,1781973038000,-300.0,0.00015732,2]
[425840417,1781973038000,-1175.35985425,0.000157,2]
[425840413,1781973038000,-160.0,0.00015425,2]
[425840416,1781973038000,-1175.35985425,0.000156,2]
[425840412,1781973038000,-160.0,0.00015425,2]
[425840415,1781973038000,-306.10947825,0.00015425,2]
[425840414,1781973038000,-160.0,0.00015425,2]
[425840397,1781973038000,-2538.0,0.000113,2]
[425840409,1781973038000,-1175.35985425,0.000154,2]
[425840407,1781973038000,-244.2324901,0.00015068,2]
[425840405,1781973038000,-1000.0,0.00014813,2]
[425840403,1781973038000,-3558.4978971,0.0001468,2]
[425840401,1781973038000,-256.14937987,0.00014527,2]
[425840395,1781973038000,-151.0,0.00010851,2]
[425840393,1781973038000,-3242.79983566,0.00010743,2]
[425840420,1781973038000,-300.0,0.00015732,2]
[425840410,1781973038000,-160.0,0.00015425,2]
[425840421,1781973038000,-300.0,0.00015732,2]
[425840399,1781973038000,-161.42802205,0.00012187,2]
[425840423,1781973038000,-300.0,0.00015732,2]
[425840422,1781973038000,-300.0,0.00015732,2]
[425840443,1781973038000,-1175.35985425,0.000161,2]
[425840441,1781973038000,-197.13560561,0.00016019,7]
[425840442,1781973038000,-600.0,0.00016046,2]
[425840444,1781973038000,-2004.35857496,0.00016331,2]
[425840440,1781973038000,-1175.35985425,0.000159,2]
[425840439,1781973038000,-157.786633,0.00015862,2]
[425840438,1781973038000,-168.3888056,0.000158,2]
[425840436,1781973038000,-186.0,0.00015739,2]
[425840437,1781973038000,-540.66552279,0.000158,2]
[425840432,1781973038000,-300.0,0.00015732,2]
[425840428,1781973038000,-300.0,0.00015732,2]
[425840433,1781973038000,-300.0,0.00015732,2]
[425840425,1781973038000,-300.0,0.00015732,2]
[425840429,1781973038000,-300.0,0.00015732,2]
[425840427,1781973038000,-300.0,0.00015732,2]
[425840435,1781973038000,-300.0,0.00015732,2]
[425840426,1781973038000,-300.0,0.00015732,2]
[425840431,1781973038000,-300.0,0.00015732,2]
[425840515,1781973040000,-11.21002824,0.00016431,2]
[425840509,1781973040000,-249.73280919,0.00016431,2]
[425840507,1781973040000,-174.61919141,0.00016348,2]
[425840511,1781973040000,-500.0,0.00016431,2]
[425840505,1781973040000,-162.9161329,0.00016332,2]
[425840503,1781973040000,-267.55619618,0.00016331,2]
[425840517,1781973040000,-500.0,0.00016431,2]
[425840513,1781973040000,-488.78997176,0.00016431,2]
[425840521,1781973040000,-500.0,0.00016431,2]
[425840526,1781973040000,-500.0,0.00016431,2]
[425840542,1781973040000,-194.33288479,0.00016431,2]
[425840528,1781973040000,-500.0,0.00016431,2]
[425840530,1781973040000,-500.0,0.00016431,2]
[425840532,1781973040000,-500.0,0.00016431,2]
[425840535,1781973040000,-500.0,0.00016431,2]
[425840537,1781973040000,-305.66711521,0.00016431,2]
[425840519,1781973040000,-425.81278209,0.00016431,2]
[425840550,1781973041000,-500.0,0.00016431,2]
[425840553,1781973041000,-500.0,0.00016431,2]
[425840556,1781973041000,-500.0,0.00016431,2]
[425840545,1781973041000,-500.0,0.00016431,2]
[425840547,1781973041000,-500.0,0.00016431,2]
[425840559,1781973041000,-500.0,0.00016431,2]
[425840566,1781973041000,-500.0,0.00016431,2]
[425840564,1781973041000,-500.0,0.00016431,2]
[425840561,1781973041000,-500.0,0.00016431,2]
[425840568,1781973041000,-500.0,0.00016431,2]
[425840570,1781973041000,-22.09276085,0.00016431,2]
[425840563,1781973041000,-500.0,0.00016431,2]
[425840772,1781973043000,-170.48357144,0.00016431,2]
[425840771,1781973043000,-500.0,0.00016431,2]
[425840770,1781973043000,-500.0,0.00016431,2]
[425840773,1781973043000,-500.0,0.00016431,2]
[425840767,1781973043000,-500.0,0.00016431,2]
[425840763,1781973043000,-500.0,0.00016431,2]
[425840766,1781973043000,-500.0,0.00016431,2]
[425840765,1781973043000,-500.0,0.00016431,2]
[425840764,1781973043000,-500.0,0.00016431,2]
[425840762,1781973043000,-477.90723915,0.00016431,2]
[425840768,1781973043000,-244.78953946,0.00016431,2]
[425840775,1781973043000,-500.0,0.00016431,2]
[425840769,1781973043000,-255.21046054,0.00016431,2]
[425840774,1781973043000,-500.0,0.00016431,2]
[425840777,1781973043000,-500.0,0.00016431,2]
[425840788,1781973043000,-500.0,0.00016431,2]
[425840785,1781973043000,-500.0,0.00016431,2]
[425840781,1781973043000,-500.0,0.00016431,2]
[425840786,1781973043000,-500.0,0.00016431,2]
[425840780,1781973043000,-500.0,0.00016431,2]
[425840787,1781973043000,-537.19640446,0.00016431,2]
[425840783,1781973043000,-500.0,0.00016431,2]
[425840784,1781973043000,-500.0,0.00016431,2]
[425840779,1781973043000,-500.0,0.00016431,2]
[425840776,1781973043000,-500.0,0.00016431,2]
[425840782,1781973043000,-500.0,0.00016431,2]
[425840778,1781973043000,-500.0,0.00016431,2]
[425840832,1781973044000,-500.0,0.00016438,2]